[Event "Live Chess"]
[Site "Chess.com"]
[Date "2024.06.01"]
[Round "-"]
[White "f4nomore"]
[Black "Tushinskiy"]
[Result "0-1"]
[WhiteElo "1201"]
[BlackElo "2241"]
[TimeControl "300"]
[EndTime "12:40:47 PDT"]
[Termination "Tushinskiy won by resignation"]

1. d4 {[%clk 0:04:56.6]} 1... d5 {[%clk 0:04:57.4]} 2. Nc3 {[%clk 0:04:54.7]}
2... c6 {[%clk 0:04:57.3]} 3. Nf3 {[%clk 0:04:52.3]} 3... Nf6 {[%clk 0:04:52.6]}
4. Bg5 {[%clk 0:04:49.6]} 4... e6 {[%clk 0:04:50.1]} 5. e3 {[%clk 0:04:47.2]}
5... Nbd7 {[%clk 0:04:41.6]} 6. Bf4 {[%clk 0:04:42.8]} 6... Be7 {[%clk
0:04:36.7]} 7. Be2 {[%clk 0:04:40.7]} 7... O-O {[%clk 0:04:25.6]} 8. O-O {[%clk
0:04:39]} 8... Re8 {[%clk 0:04:22.5]} 9. Ne5 {[%clk 0:04:34.4]} 9... Nxe5 {[%clk
0:04:16.8]} 10. Bxe5 {[%clk 0:04:32.3]} 10... Nd7 {[%clk 0:04:03.6]} 11. Bg3
{[%clk 0:04:27.5]} 11... Bf6 {[%clk 0:03:59]} 12. Bd3 {[%clk 0:04:25.8]} 12...
e5 {[%clk 0:03:48.5]} 13. dxe5 {[%clk 0:04:16.3]} 13... Nxe5 {[%clk 0:03:48.4]}
14. Bxe5 {[%clk 0:04:02.6]} 14... Bxe5 {[%clk 0:03:37.6]} 15. f4 {[%clk
0:03:52.9]} 15... Bc7 {[%clk 0:03:27.1]} 16. Qh5 {[%clk 0:03:44.3]} 16... g6
{[%clk 0:03:21.3]} 17. Qh6 {[%clk 0:03:33.1]} 17... Qf6 {[%clk 0:03:10.7]} 18.
Rab1 {[%clk 0:03:24.9]} 18... Qg7 {[%clk 0:03:04.6]} 19. Qh4 {[%clk 0:03:17.3]}
19... Rxe3 {[%clk 0:03:02]} 20. Ne2 {[%clk 0:03:03.4]} 20... Bd7 {[%clk
0:02:52.8]} 21. Ng3 {[%clk 0:02:29.8]} 21... Bd8 {[%clk 0:02:42.6]} 22. Nf5
{[%clk 0:02:15.7]} 22... Bxh4 {[%clk 0:02:37.2]} 23. Nxg7 {[%clk 0:02:13]} 23...
Kxg7 {[%clk 0:02:35.8]} 24. g3 {[%clk 0:02:05.9]} 24... Bd8 {[%clk 0:02:33.3]}
25. Rbe1 {[%clk 0:02:02.7]} 25... Bb6 {[%clk 0:02:30.3]} 26. Kg2 {[%clk
0:01:58.7]} 26... Rae8 {[%clk 0:02:27.1]} 27. Rxe3 {[%clk 0:01:42]} 27... Rxe3
{[%clk 0:02:23.8]} 28. a3 {[%clk 0:01:36.4]} 28... h5 {[%clk 0:02:20.1]} 29. h3
{[%clk 0:01:34.7]} 29... c5 {[%clk 0:02:13.7]} 30. b3 {[%clk 0:01:29.8]} 30...
Bc6 {[%clk 0:02:09.4]} 31. Kh2 {[%clk 0:01:22.4]} 31... Bc7 {[%clk 0:01:53.8]}
32. c4 {[%clk 0:01:05.1]} 32... Rxd3 {[%clk 0:01:42.2]} 0-1

[Event "Live Chess"]
[Site "Chess.com"]
[Date "2024.06.01"]
[Round "-"]
[White "Kyrylo7770"]
[Black "Enhard"]
[Result "1-0"]
[WhiteElo "1684"]
[BlackElo "1436"]
[TimeControl "300"]
[EndTime "12:41:00 PDT"]
[Termination "Kyrylo7770 won by resignation"]

1. d4 {[%clk 0:04:59.8]} 1... c6 {[%clk 0:04:58.5]} 2. Nf3 {[%clk 0:04:59.5]}
2... d5 {[%clk 0:04:57]} 3. Bg5 {[%clk 0:04:59.1]} 3... h6 {[%clk 0:04:55]} 4.
Bh4 {[%clk 0:04:58]} 4... Bg4 {[%clk 0:04:53.7]} 5. e3 {[%clk 0:04:57.4]} 5...
Nd7 {[%clk 0:04:52]} 6. Be2 {[%clk 0:04:56.8]} 6... Ngf6 {[%clk 0:04:50.7]} 7.
c3 {[%clk 0:04:55.8]} 7... e6 {[%clk 0:04:49.8]} 8. Nbd2 {[%clk 0:04:55.2]} 8...
Be7 {[%clk 0:04:49]} 9. Bg3 {[%clk 0:04:53.9]} 9... O-O {[%clk 0:04:46]} 10. h3
{[%clk 0:04:52.2]} 10... Bf5 {[%clk 0:04:44.1]} 11. Ne5 {[%clk 0:04:50.3]} 11...
Nxe5 {[%clk 0:04:39.3]} 12. Bxe5 {[%clk 0:04:50.2]} 12... Bh7 {[%clk 0:04:37.2]}
13. Nf3 {[%clk 0:04:48.3]} 13... Nd7 {[%clk 0:04:34]} 14. Bd3 {[%clk 0:04:46.6]}
14... Bxd3 {[%clk 0:04:32.5]} 15. Qxd3 {[%clk 0:04:45.6]} 15... Nxe5 {[%clk
0:04:31.7]} 16. Nxe5 {[%clk 0:04:45.5]} 16... Bf6 {[%clk 0:04:30.9]} 17. Ng4
{[%clk 0:04:44.6]} 17... a6 {[%clk 0:04:23.9]} 18. e4 {[%clk 0:04:43.8]} 18...
dxe4 {[%clk 0:04:22.3]} 19. Qxe4 {[%clk 0:04:43.3]} 19... Bg5 {[%clk 0:04:18.7]}
20. f4 {[%clk 0:04:39.6]} 20... Bf6 {[%clk 0:04:17.1]} 21. O-O {[%clk
0:04:35.7]} 21... Be7 {[%clk 0:04:13.4]} 22. f5 {[%clk 0:04:34.2]} 22... Qd5
{[%clk 0:04:10.5]} 23. Qd3 {[%clk 0:04:32.1]} 23... exf5 {[%clk 0:04:07.8]} 24.
Rxf5 {[%clk 0:04:31.5]} 24... Qd7 {[%clk 0:04:03.7]} 25. Raf1 {[%clk 0:04:30.7]}
25... Bg5 {[%clk 0:03:57.9]} 26. Qg3 {[%clk 0:04:26.3]} 26... Rad8 {[%clk
0:03:53.4]} 27. Ne5 {[%clk 0:04:24.4]} 27... Qd6 {[%clk 0:03:36.7]} 28. h4
{[%clk 0:04:22.7]} 28... Bd2 {[%clk 0:03:12.1]} 29. Qd3 {[%clk 0:04:13.2]} 29...
f6 {[%clk 0:03:05.2]} 30. Ng6 {[%clk 0:04:09.4]} 30... Bxc3 {[%clk 0:02:57.3]}
31. bxc3 {[%clk 0:04:07.1]} 31... Rfe8 {[%clk 0:02:53]} 32. Qc4+ {[%clk
0:04:05.1]} 32... Kh7 {[%clk 0:02:49.5]} 33. Qd3 {[%clk 0:03:56.9]} 33... Kg8
{[%clk 0:02:37.9]} 34. h5 {[%clk 0:03:45.2]} 1-0

[Event "Live Chess"]
[Site "Chess.com"]
[Date "2024.06.01"]
[Round "-"]
[White "AlexanderMatlak"]
[Black "nffc11"]
[Result "0-1"]
[WhiteElo "2485"]
[BlackElo "2017"]
[TimeControl "300"]
[EndTime "12:41:11 PDT"]
[Termination "nffc11 won by checkmate"]

1. c4 {[%clk 0:04:57.1]} 1... e5 {[%clk 0:04:57]} 2. Nc3 {[%clk 0:04:55.8]} 2...
Nc6 {[%clk 0:04:56.3]} 3. Nf3 {[%clk 0:04:55.1]} 3... Nf6 {[%clk 0:04:55.6]} 4.
g3 {[%clk 0:04:54.3]} 4... Bc5 {[%clk 0:04:54.3]} 5. Nxe5 {[%clk 0:04:53]} 5...
Nxe5 {[%clk 0:04:53.8]} 6. d4 {[%clk 0:04:51.6]} 6... Bxd4 {[%clk 0:04:39.6]} 7.
Qxd4 {[%clk 0:04:51.5]} 7... d6 {[%clk 0:04:36.7]} 8. Bg2 {[%clk 0:04:49.9]}
8... O-O {[%clk 0:04:35.3]} 9. O-O {[%clk 0:04:46.9]} 9... h6 {[%clk 0:04:30.4]}
10. b3 {[%clk 0:04:41]} 10... Re8 {[%clk 0:04:28.8]} 11. Bb2 {[%clk 0:04:39.9]}
11... Nc6 {[%clk 0:04:25]} 12. Qd2 {[%clk 0:04:37.1]} 12... Bf5 {[%clk
0:04:22.8]} 13. Rad1 {[%clk 0:04:35.9]} 13... Ne4 {[%clk 0:04:10.3]} 14. Nxe4
{[%clk 0:04:29.1]} 14... Bxe4 {[%clk 0:04:09.4]} 15. f3 {[%clk 0:04:26.9]} 15...
Bf5 {[%clk 0:04:04.7]} 16. e4 {[%clk 0:04:25.9]} 16... Bd7 {[%clk 0:03:58.4]}
17. f4 {[%clk 0:04:20.9]} 17... Qe7 {[%clk 0:03:53.1]} 18. Rfe1 {[%clk 0:04:19]}
18... Bg4 {[%clk 0:03:50.3]} 19. Rc1 {[%clk 0:04:16.9]} 19... Rad8 {[%clk
0:03:46.1]} 20. h3 {[%clk 0:04:15.8]} 20... Bc8 {[%clk 0:03:40.2]} 21. Qc3
{[%clk 0:04:12.5]} 21... f6 {[%clk 0:03:37.3]} 22. Rcd1 {[%clk 0:04:10.4]} 22...
Kh8 {[%clk 0:03:26]} 23. b4 {[%clk 0:04:08.8]} 23... Qf7 {[%clk 0:03:21]} 24. b5
{[%clk 0:04:03.1]} 24... Ne7 {[%clk 0:03:12.4]} 25. a4 {[%clk 0:03:49.5]} 25...
Qh5 {[%clk 0:03:04.6]} 26. g4 {[%clk 0:03:39.6]} 26... Qf7 {[%clk 0:02:59.5]}
27. c5 {[%clk 0:03:30.6]} 27... dxc5 {[%clk 0:02:48.9]} 28. Rxd8 {[%clk
0:03:11.3]} 28... Rxd8 {[%clk 0:02:47.8]} 29. Qxc5 {[%clk 0:03:10.9]} 29... Ng6
{[%clk 0:02:39]} 30. e5 {[%clk 0:02:30.8]} 30... fxe5 {[%clk 0:02:11.8]} 31.
Bxe5 {[%clk 0:02:12.2]} 31... Nxf4 {[%clk 0:01:44.4]} 32. Rf1 {[%clk 0:01:39.4]}
32... Ne2+ {[%clk 0:01:36.3]} 33. Kh2 {[%clk 0:01:31.9]} 33... Qg6 {[%clk
0:01:16.4]} 34. Qxc7 {[%clk 0:01:21.1]} 34... Re8 {[%clk 0:01:00.2]} 35. Rf7
{[%clk 0:01:06]} 35... Rxe5 {[%clk 0:00:43.1]} 36. Rf8+ {[%clk 0:01:01.6]} 36...
Kh7 {[%clk 0:00:41.9]} 37. Qxc8 {[%clk 0:00:55.1]} 37... Qd3 {[%clk 0:00:25.9]}
38. Rh8+ {[%clk 0:00:48.1]} 38... Kg6 {[%clk 0:00:25.3]} 39. Rf8 {[%clk
0:00:25.2]} 39... Qg3+ {[%clk 0:00:19.2]} 40. Kh1 {[%clk 0:00:24.4]} 40... Qe1+
{[%clk 0:00:10.8]} 41. Kh2 {[%clk 0:00:19.5]} 41... Qg1# {[%clk 0:00:08.5]} 0-1

[Event "Live Chess"]
[Site "Chess.com"]
[Date "2024.06.01"]
[Round "-"]
[White "KwikPhoenix"]
[Black "Sweet-O"]
[Result "1-0"]
[WhiteElo "2462"]
[BlackElo "1556"]
[TimeControl "300"]
[EndTime "12:41:13 PDT"]
[Termination "KwikPhoenix won by resignation"]

1. b3 {[%clk 0:04:58.6]} 1... e5 {[%clk 0:04:58.9]} 2. Bb2 {[%clk 0:04:57.9]}
2... f6 {[%clk 0:04:56.4]} 3. d4 {[%clk 0:04:56.5]} 3... Nc6 {[%clk 0:04:49.8]}
4. dxe5 {[%clk 0:04:55.5]} 4... fxe5 {[%clk 0:04:49.7]} 5. e4 {[%clk 0:04:55]}
5... Qf6 {[%clk 0:04:47.1]} 6. Nf3 {[%clk 0:04:53.5]} 6... Bc5 {[%clk
0:04:41.3]} 7. Bb5 {[%clk 0:04:49.8]} 7... g5 {[%clk 0:04:38.8]} 8. Bxc6 {[%clk
0:04:48.6]} 8... g4 {[%clk 0:04:30]} 9. Bxe5 {[%clk 0:04:47]} 9... Qf7 {[%clk
0:04:15.3]} 10. Bxh8 {[%clk 0:04:44.6]} 10... gxf3 {[%clk 0:04:12.8]} 11. Qxf3
{[%clk 0:04:43.9]} 11... Qxf3 {[%clk 0:03:50.6]} 12. gxf3 {[%clk 0:04:43.8]}
12... bxc6 {[%clk 0:03:49.2]} 13. Nd2 {[%clk 0:04:40.1]} 13... Ba6 {[%clk
0:03:46.1]} 14. O-O-O {[%clk 0:04:38.4]} 14... Ne7 {[%clk 0:03:36.1]} 15. Nc4
{[%clk 0:04:37.4]} 15... Rb8 {[%clk 0:03:28.5]} 16. Bd4 {[%clk 0:04:36.2]} 16...
Ba3+ {[%clk 0:03:26.1]} 17. Nxa3 {[%clk 0:04:35.2]} 1-0

[Event "Live Chess"]
[Site "Chess.com"]
[Date "2024.06.01"]
[Round "-"]
[White "FlyingChessKestrel13"]
[Black "ossie57"]
[Result "1-0"]
[WhiteElo "2077"]
[BlackElo "1645"]
[TimeControl "300"]
[EndTime "12:41:18 PDT"]
[Termination "FlyingChessKestrel13 won by resignation"]

1. e4 {[%clk 0:04:57.9]} 1... c5 {[%clk 0:04:57.9]} 2. Nf3 {[%clk 0:04:57.2]}
2... d6 {[%clk 0:04:56.7]} 3. Bb5+ {[%clk 0:04:56.2]} 3... Nd7 {[%clk
0:04:55.3]} 4. c4 {[%clk 0:04:55.6]} 4... a6 {[%clk 0:04:54.5]} 5. Ba4 {[%clk
0:04:54.5]} 5... e6 {[%clk 0:04:51.6]} 6. Nc3 {[%clk 0:04:51.3]} 6... g6 {[%clk
0:04:50.7]} 7. O-O {[%clk 0:04:50.5]} 7... Bg7 {[%clk 0:04:50.1]} 8. d4 {[%clk
0:04:49.6]} 8... cxd4 {[%clk 0:04:49.2]} 9. Nxd4 {[%clk 0:04:49.5]} 9... Qc7
{[%clk 0:04:36.1]} 10. Bb3 {[%clk 0:04:47.1]} 10... Ne7 {[%clk 0:04:31.7]} 11.
Be3 {[%clk 0:04:46.1]} 11... O-O {[%clk 0:04:27.6]} 12. f3 {[%clk 0:04:45.1]}
12... b6 {[%clk 0:04:26.2]} 13. Qd2 {[%clk 0:04:39.8]} 13... Ne5 {[%clk
0:04:24.5]} 14. Qe2 {[%clk 0:04:36.7]} 14... a5 {[%clk 0:04:22]} 15. Ncb5 {[%clk
0:04:30.9]} 15... Qd8 {[%clk 0:04:15.1]} 16. a4 {[%clk 0:04:29]} 16... Ba6
{[%clk 0:04:13.5]} 17. Rad1 {[%clk 0:04:27.2]} 17... Bxb5 {[%clk 0:04:12.3]} 18.
Nxb5 {[%clk 0:04:25.8]} 18... d5 {[%clk 0:04:10.5]} 19. exd5 {[%clk 0:04:22.2]}
19... exd5 {[%clk 0:04:09.5]} 20. cxd5 {[%clk 0:04:20.4]} 20... Rc8 {[%clk
0:04:03.2]} 21. Bd4 {[%clk 0:04:16.6]} 21... Nd7 {[%clk 0:03:47.7]} 22. Bxg7
{[%clk 0:04:13.1]} 22... Kxg7 {[%clk 0:03:47.6]} 23. d6 {[%clk 0:04:04.9]} 23...
Ng8 {[%clk 0:03:40.3]} 24. Qd3 {[%clk 0:04:01.8]} 24... Nc5 {[%clk 0:03:38.5]}
25. Qd4+ {[%clk 0:03:59.8]} 25... f6 {[%clk 0:03:37.1]} 26. Bxg8 {[%clk
0:03:57.3]} 26... Rxg8 {[%clk 0:03:36.2]} 27. Rfe1 {[%clk 0:03:56.2]} 27... Re8
{[%clk 0:03:27.8]} 28. Kf2 {[%clk 0:03:50.8]} 28... Ne6 {[%clk 0:03:13.9]} 29.
Qd2 {[%clk 0:03:34.7]} 29... f5 {[%clk 0:03:07.1]} 30. d7 {[%clk 0:03:33]} 30...
Qh4+ {[%clk 0:03:05.3]} 31. Kg1 {[%clk 0:03:30.3]} 1-0

[Event "Live Chess"]
[Site "Chess.com"]
[Date "2024.06.01"]
[Round "-"]
[White "LL220284LL"]
[Black "Dhaydon19"]
[Result "1-0"]
[WhiteElo "2550"]
[BlackElo "2682"]
[TimeControl "300"]
[EndTime "12:41:21 PDT"]
[Termination "LL220284LL won by resignation"]

1. d4 {[%clk 0:04:57.7]} 1... e6 {[%clk 0:04:59.7]} 2. Bf4 {[%clk 0:04:55.4]}
2... d5 {[%clk 0:04:57.9]} 3. Nd2 {[%clk 0:04:54.9]} 3... Bd6 {[%clk 0:04:56.7]}
4. Bg3 {[%clk 0:04:53.3]} 4... Nf6 {[%clk 0:04:55.7]} 5. e3 {[%clk 0:04:52.7]}
5... O-O {[%clk 0:04:55.4]} 6. Ngf3 {[%clk 0:04:52.3]} 6... Nbd7 {[%clk
0:04:54.9]} 7. Bd3 {[%clk 0:04:51.8]} 7... Qe7 {[%clk 0:04:54.6]} 8. O-O {[%clk
0:04:50.3]} 8... e5 {[%clk 0:04:53.7]} 9. dxe5 {[%clk 0:04:49.6]} 9... Nxe5
{[%clk 0:04:53.4]} 10. Nxe5 {[%clk 0:04:47.6]} 10... Bxe5 {[%clk 0:04:53.1]} 11.
c3 {[%clk 0:04:46.6]} 11... c6 {[%clk 0:04:51.6]} 12. Qc2 {[%clk 0:04:45]} 12...
Bxg3 {[%clk 0:04:50.1]} 13. hxg3 {[%clk 0:04:44.2]} 13... g6 {[%clk 0:04:49.1]}
14. Rae1 {[%clk 0:04:42.8]} 14... Be6 {[%clk 0:04:46.5]} 15. e4 {[%clk
0:04:41.6]} 15... dxe4 {[%clk 0:04:45.1]} 16. Nxe4 {[%clk 0:04:41.5]} 16... Nxe4
{[%clk 0:04:44.5]} 17. Rxe4 {[%clk 0:04:40.5]} 17... Rad8 {[%clk 0:04:41.5]} 18.
Rfe1 {[%clk 0:04:39.4]} 18... Qd7 {[%clk 0:04:37.1]} 19. R4e3 {[%clk 0:04:35.6]}
19... Qd6 {[%clk 0:04:30.7]} 20. Bf1 {[%clk 0:04:30.5]} 20... Bxa2 {[%clk
0:04:21.8]} 21. Qa4 {[%clk 0:04:23.4]} 21... Be6 {[%clk 0:04:19.3]} 22. Qxa7
{[%clk 0:04:21.8]} 22... b5 {[%clk 0:04:17.4]} 23. Qa1 {[%clk 0:04:18.7]} 23...
Ra8 {[%clk 0:04:11.1]} 24. Qc1 {[%clk 0:04:17.2]} 24... Bd5 {[%clk 0:04:09.5]}
25. Re7 {[%clk 0:04:13.5]} 25... Rad8 {[%clk 0:04:04.7]} 26. Qg5 {[%clk
0:04:10]} 26... Rd7 {[%clk 0:04:02.1]} 27. Re8 {[%clk 0:04:04.6]} 27... Be6
{[%clk 0:04:00.9]} 28. Rxf8+ {[%clk 0:04:02.2]} 28... Kxf8 {[%clk 0:03:59.9]}
29. Qf6 {[%clk 0:04:00.4]} 29... Kg8 {[%clk 0:03:58]} 30. g4 {[%clk 0:03:53.2]}
30... Qe7 {[%clk 0:03:44.2]} 31. Qf4 {[%clk 0:03:46.5]} 31... Qh4 {[%clk
0:03:37]} 32. Be2 {[%clk 0:03:35.9]} 32... Kg7 {[%clk 0:03:34]} 33. Bf3 {[%clk
0:03:32.9]} 33... c5 {[%clk 0:03:30.9]} 34. Qe5+ {[%clk 0:03:28.1]} 34... Kh6
{[%clk 0:03:18.3]} 35. Qxc5 {[%clk 0:03:25.7]} 35... Rd2 {[%clk 0:03:16.5]} 36.
g3 {[%clk 0:03:05]} 36... Qg5 {[%clk 0:03:08.4]} 37. Qxg5+ {[%clk 0:03:03.4]}
37... Kxg5 {[%clk 0:03:07.2]} 38. Re5+ {[%clk 0:03:03]} 38... Kf6 {[%clk
0:02:59.4]} 39. Rxb5 {[%clk 0:03:02.6]} 39... Rc2 {[%clk 0:02:56.4]} 40. g5+
{[%clk 0:03:01.4]} 40... Ke7 {[%clk 0:02:54.2]} 41. Be4 {[%clk 0:02:58.2]} 41...
Rc1+ {[%clk 0:02:52.7]} 42. Kg2 {[%clk 0:02:57.6]} 42... Bc4 {[%clk 0:02:49.7]}
43. Rb7+ {[%clk 0:02:52.8]} 43... Ke6 {[%clk 0:02:48.7]} 44. Kf3 {[%clk
0:02:46.2]} 44... Re1 {[%clk 0:02:47.1]} 45. Rb6+ {[%clk 0:02:44.6]} 45... Ke5
{[%clk 0:02:45.1]} 46. Bb7 {[%clk 0:02:38]} 46... Be2+ {[%clk 0:02:41.7]} 47.
Ke3 {[%clk 0:02:34.5]} 47... Bc4+ {[%clk 0:02:38.3]} 48. Kf3 {[%clk 0:02:31]}
48... Be2+ {[%clk 0:02:36.9]} 49. Kg2 {[%clk 0:02:28.7]} 49... Bf1+ {[%clk
0:02:36.1]} 50. Kh2 {[%clk 0:02:27.2]} 50... Bc4 {[%clk 0:02:35.2]} 51. f4+
{[%clk 0:02:15.8]} 51... Kf5 {[%clk 0:02:33.9]} 52. Bf3 {[%clk 0:02:08.9]} 52...
Re6 {[%clk 0:02:14.6]} 53. Rxe6 {[%clk 0:02:02.3]} 53... fxe6 {[%clk 0:02:13.7]}
54. Kg2 {[%clk 0:01:55.8]} 54... e5 {[%clk 0:02:12.9]} 55. fxe5 {[%clk
0:01:53.7]} 55... Kxe5 {[%clk 0:02:12.1]} 56. Kf2 {[%clk 0:01:47.3]} 56... Kf5
{[%clk 0:02:11.4]} 57. Ke3 {[%clk 0:01:46.4]} 57... Kxg5 {[%clk 0:02:11]} 58.
Kd4 {[%clk 0:01:45.9]} 58... Bf1 {[%clk 0:02:06.8]} 59. c4 {[%clk 0:01:44.5]}
59... Bg2 {[%clk 0:02:02.8]} 60. Bxg2 {[%clk 0:01:43.2]} 1-0

[Event "Live Chess"]
[Site "Chess.com"]
[Date "2024.06.01"]
[Round "-"]
[White "resipsa6"]
[Black "degringolade64"]
[Result "0-1"]
[WhiteElo "2028"]
[BlackElo "2138"]
[TimeControl "300"]
[EndTime "12:41:28 PDT"]
[Termination "degringolade64 won by resignation"]

1. Nf3 {[%clk 0:04:57.8]} 1... d5 {[%clk 0:04:58.5]} 2. g3 {[%clk 0:04:57]} 2...
Bg4 {[%clk 0:04:56.3]} 3. Bg2 {[%clk 0:04:56.2]} 3... Nd7 {[%clk 0:04:55.5]} 4.
d3 {[%clk 0:04:55.1]} 4... c6 {[%clk 0:04:50.3]} 5. Nbd2 {[%clk 0:04:54.4]} 5...
e5 {[%clk 0:04:48.8]} 6. e4 {[%clk 0:04:52.7]} 6... Ngf6 {[%clk 0:04:48.2]} 7.
O-O {[%clk 0:04:49.9]} 7... Bd6 {[%clk 0:04:47.8]} 8. Re1 {[%clk 0:04:48.4]}
8... O-O {[%clk 0:04:46.7]} 9. c3 {[%clk 0:04:47.5]} 9... Re8 {[%clk 0:04:44.7]}
10. Qb3 {[%clk 0:04:46.5]} 10... Qb6 {[%clk 0:04:32.5]} 11. Qxb6 {[%clk
0:04:43.2]} 11... axb6 {[%clk 0:04:32.4]} 12. exd5 {[%clk 0:04:39.9]} 12... Nxd5
{[%clk 0:04:27.9]} 13. Nf1 {[%clk 0:04:38.3]} 13... Nc5 {[%clk 0:04:21]} 14. d4
{[%clk 0:04:30.5]} 14... exd4 {[%clk 0:04:04.5]} 15. Rxe8+ {[%clk 0:04:22.6]}
15... Rxe8 {[%clk 0:04:02.9]} 16. Nxd4 {[%clk 0:04:21.5]} 16... Re1 {[%clk
0:03:55.1]} 17. b4 {[%clk 0:04:16.6]} 17... Nd3 {[%clk 0:03:52.6]} 18. Bb2
{[%clk 0:04:09.6]} 18... Rxf1+ {[%clk 0:03:24.5]} 19. Rxf1 {[%clk 0:03:58.4]}
19... Nxb2 {[%clk 0:03:23.3]} 20. Rb1 {[%clk 0:03:48.1]} 20... Nc4 {[%clk
0:03:15]} 21. b5 {[%clk 0:03:40.9]} 21... Nxc3 {[%clk 0:02:38]} 22. Rb3 {[%clk
0:03:29.8]} 22... Nxb5 {[%clk 0:02:29.8]} 23. Nxc6 {[%clk 0:03:22.9]} 23... bxc6
{[%clk 0:02:22.7]} 24. Bxc6 {[%clk 0:03:21.1]} 24... Nd4 {[%clk 0:02:19.5]} 25.
Rc3 {[%clk 0:03:12.5]} 25... Ne2+ {[%clk 0:02:17.6]} 0-1

[Event "Live Chess"]
[Site "Chess.com"]
[Date "2024.06.01"]
[Round "-"]
[White "grillage"]
[Black "jimwad"]
[Result "0-1"]
[WhiteElo "1855"]
[BlackElo "1251"]
[TimeControl "300"]
[EndTime "12:41:47 PDT"]
[Termination "jimwad won on time"]

1. d4 {[%clk 0:04:57.9]} 1... d5 {[%clk 0:04:58.8]} 2. Nf3 {[%clk 0:04:54.8]}
2... Nf6 {[%clk 0:04:57.6]} 3. c4 {[%clk 0:04:51.4]} 3... c6 {[%clk 0:04:55.3]}
4. Qc2 {[%clk 0:04:49.7]} 4... e6 {[%clk 0:04:53.4]} 5. cxd5 {[%clk 0:04:47.3]}
5... exd5 {[%clk 0:04:49.6]} 6. Nc3 {[%clk 0:04:42.4]} 6... Be6 {[%clk
0:04:48.3]} 7. Bg5 {[%clk 0:04:41.3]} 7... Be7 {[%clk 0:04:47]} 8. e3 {[%clk
0:04:40.8]} 8... Nbd7 {[%clk 0:04:45]} 9. Bd3 {[%clk 0:04:39.5]} 9... O-O {[%clk
0:04:43.6]} 10. O-O {[%clk 0:04:37.6]} 10... h6 {[%clk 0:04:42.6]} 11. Bh4
{[%clk 0:04:35.5]} 11... Kh8 {[%clk 0:04:28.5]} 12. Rab1 {[%clk 0:04:30.9]}
12... b6 {[%clk 0:04:23.9]} 13. b4 {[%clk 0:04:28.8]} 13... Bg4 {[%clk
0:04:17.8]} 14. Ne2 {[%clk 0:04:06.5]} 14... Bxf3 {[%clk 0:04:15.8]} 15. gxf3
{[%clk 0:04:06.1]} 15... Nh5 {[%clk 0:04:11]} 16. Bg3 {[%clk 0:04:04.9]} 16...
Nxg3 {[%clk 0:04:08.4]} 17. hxg3 {[%clk 0:04:04.2]} 17... Nf6 {[%clk 0:04:07.1]}
18. Qxc6 {[%clk 0:03:58.8]} 18... Rc8 {[%clk 0:03:56.5]} 19. Qa4 {[%clk
0:03:56.3]} 19... Qd7 {[%clk 0:03:42.9]} 20. Qxd7 {[%clk 0:03:48.7]} 20... Nxd7
{[%clk 0:03:41.6]} 21. Bf5 {[%clk 0:03:45.9]} 21... Rfd8 {[%clk 0:03:37.8]} 22.
a3 {[%clk 0:03:42]} 22... b5 {[%clk 0:03:35.1]} 23. Rbc1 {[%clk 0:03:40.5]}
23... Rxc1 {[%clk 0:03:32.4]} 24. Rxc1 {[%clk 0:03:39.5]} 24... a6 {[%clk
0:03:30.5]} 25. Nf4 {[%clk 0:03:36.3]} 25... Nb6 {[%clk 0:03:28.4]} 26. Rc7
{[%clk 0:03:31]} 26... Bf6 {[%clk 0:03:14.1]} 27. Rxf7 {[%clk 0:03:25.4]} 27...
Nc4 {[%clk 0:03:12]} 28. Ra7 {[%clk 0:03:11.1]} 28... Nxa3 {[%clk 0:03:09.9]}
29. Ng6+ {[%clk 0:03:03.5]} 29... Kg8 {[%clk 0:03:05.6]} 30. Rxa6 {[%clk
0:02:49.6]} 30... Nc2 {[%clk 0:03:03.5]} 31. Be6+ {[%clk 0:02:37.8]} 31... Kh7
{[%clk 0:03:01.5]} 32. Nf4 {[%clk 0:02:36.1]} 32... Nxb4 {[%clk 0:02:58.3]} 33.
Rb6 {[%clk 0:02:35.6]} 33... g5 {[%clk 0:02:23.5]} 34. Rxb5 {[%clk 0:02:31.3]}
34... gxf4 {[%clk 0:02:20.9]} 35. Rxb4 {[%clk 0:02:29.9]} 35... fxg3 {[%clk
0:02:16]} 36. fxg3 {[%clk 0:02:28.7]} 36... Rd6 {[%clk 0:02:11.3]} 37. Bf5+
{[%clk 0:02:26.1]} 37... Kg7 {[%clk 0:02:09.7]} 38. g4 {[%clk 0:02:22.6]} 38...
Be7 {[%clk 0:02:03.4]} 39. Rb7 {[%clk 0:02:19.2]} 39... Kf6 {[%clk 0:02:02]} 40.
Kg2 {[%clk 0:02:14.6]} 40... h5 {[%clk 0:02:00.9]} 41. Kg3 {[%clk 0:02:09.9]}
41... hxg4 {[%clk 0:01:59.3]} 42. Bxg4 {[%clk 0:02:08.9]} 42... Ra6 {[%clk
0:01:49.7]} 43. Rd7 {[%clk 0:02:01.4]} 43... Bd6+ {[%clk 0:01:46.4]} 44. f4
{[%clk 0:01:57.5]} 44... Rb6 {[%clk 0:01:36.6]} 45. Rd8 {[%clk 0:01:40]} 45...
Ke7 {[%clk 0:01:34.9]} 46. Rd7+ {[%clk 0:01:37.7]} 46... Kf6 {[%clk 0:01:33.3]}
47. Kh4 {[%clk 0:01:26.8]} 47... Kg6 {[%clk 0:01:26.5]} 48. Bf3 {[%clk
0:01:16.4]} 48... Kf5 {[%clk 0:01:24.7]} 49. Bxd5 {[%clk 0:01:13.1]} 49... Rb3
{[%clk 0:01:09.7]} 50. Rxd6 {[%clk 0:01:11.2]} 50... Rxe3 {[%clk 0:01:08.6]} 51.
Bg8 {[%clk 0:00:50.1]} 51... Kxf4 {[%clk 0:01:06.5]} 52. d5 {[%clk 0:00:49.4]}
52... Re1 {[%clk 0:01:03]} 53. Rf6+ {[%clk 0:00:47.9]} 53... Ke5 {[%clk
0:01:01.5]} 54. Rf7 {[%clk 0:00:46.4]} 54... Rh1+ {[%clk 0:00:56.7]} 55. Kg5
{[%clk 0:00:44.6]} 55... Rg1+ {[%clk 0:00:56]} 56. Kh6 {[%clk 0:00:43.6]} 56...
Rxg8 {[%clk 0:00:55.1]} 57. Rd7 {[%clk 0:00:36.7]} 57... Kf6 {[%clk 0:00:50.4]}
58. Kh7 {[%clk 0:00:33.9]} 58... Rg5 {[%clk 0:00:45.8]} 59. d6 {[%clk
0:00:25.9]} 59... Rh5+ {[%clk 0:00:44.2]} 60. Kg8 {[%clk 0:00:24.4]} 60... Rg5+
{[%clk 0:00:43.4]} 61. Kf8 {[%clk 0:00:23.4]} 61... Rh5 {[%clk 0:00:41.7]} 62.
Kg8 {[%clk 0:00:17.1]} 62... Rg5+ {[%clk 0:00:40.2]} 63. Kf8 {[%clk 0:00:14.8]}
63... Rh5 {[%clk 0:00:38.6]} 64. Rf7+ {[%clk 0:00:14]} 64... Ke6 {[%clk
0:00:36.8]} 65. d7 {[%clk 0:00:07.4]} 65... Rh8+ {[%clk 0:00:34.6]} 66. Kg7
{[%clk 0:00:06.6]} 66... Rd8 {[%clk 0:00:33.6]} 0-1